bitfinex-derivatives/quotes_SOLF0:USTF0_20260208
["timestamp","ask_amount","ask_price","bid_price","bid_amount"]
[1770548093105,10.77021307,86.962,86.924,21.46191251]
[1770548093706,10.77021307,86.962,86.928,11.09901251]
[1770548097708,10.50856208,87.01,86.87,11.49]
[1770548097709,10.77021307,86.959,86.918,11.09901251]
[1770548100412,10.77021307,86.949,86.906,10.365]
[1770548100610,10.77021307,86.939,86.896,11.09901251]
[1770548100810,4.40501536,86.93,86.896,11.09901251]
[1770548101005,15.17522843,86.93,86.896,11.09901251]
[1770548101202,10.77021307,86.929,86.896,11.09901251]
[1770548102022,10.77021307,86.939,86.897,11.09901251]
[1770548106019,9.25722057,86.929,86.897,11.09901251]
[1770548107322,9.25722057,86.919,86.88,9.2598923]
[1770548108319,9.25722057,86.919,86.884,9.2598923]
[1770548109924,13.66580508,86.91,86.861,9.2598923]
[1770548110816,13.66580508,86.91,86.862,9.2598923]
[1770548111218,9.25722057,86.909,86.862,9.2598923]
[1770548112520,9.25722057,86.909,86.865,9.2598923]
[1770548113617,9.25722057,86.909,86.867,9.2598923]
[1770548114711,9.25722057,86.909,86.869,18.68316937]
[1770548115124,9.25722057,86.909,86.87,8.31376937]
[1770548116622,9.25722057,86.909,86.872,10.3691]
[1770548117225,8.69959627,86.899,86.863,10.3701]
[1770548119220,8.69959627,86.899,86.858,8.31376937]
[1770548120721,8.69959627,86.899,86.861,10.3704]
[1770548121722,4.40858451,86.89,86.869,10.3694]
[1770548121923,8.69959627,86.889,86.858,8.31376937]
[1770548122122,4.40858451,86.9,86.858,8.31376937]
[1770548122721,4.40858451,86.9,86.86,10.3706]
[1770548123120,4.40858451,86.89,86.86,10.3706]
[1770548123826,4.40858451,86.89,86.858,8.31376937]
[1770548124020,8.69959627,86.889,86.858,8.31376937]
[1770548129731,8.69959627,86.889,86.847,8.31376937]
[1770548130429,13.10818078,86.88,86.847,8.31376937]
[1770548130622,13.10818078,86.88,86.79,11.49]
[1770548130623,8.69959627,86.879,86.833,8.31376937]
[1770548131430,8.69959627,86.879,86.834,8.31376937]
[1770548131830,8.69959627,86.897,86.84,4.40858451]
[1770548132027,8.69959627,86.897,86.841,8.31376937]
[1770548132826,8.69959627,86.897,86.847,8.31376937]
[1770548133026,8.69959627,86.889,86.847,8.31376937]
[1770548135531,8.69959627,86.889,86.85,8.31376937]
[1770548136821,8.69959627,86.889,86.853,8.46026026]
[1770548138527,4.40858451,86.88,86.842,18.83286026]
[1770548138726,8.69959627,86.889,86.843,8.46026026]
[1770548139637,8.69959627,86.889,86.847,8.46026026]
[1770548140336,8.69959627,86.889,86.85,8.46026026]
[1770548141937,8.69959627,86.889,86.852,8.46026026]
[1770548142339,8.69959627,86.889,86.857,10.3709]
[1770548142539,8.69959627,86.889,86.858,8.46026026]
[1770548143836,8.69959627,86.889,86.859,10.3706]
[1770548147640,9.627e-05,86.889,86.865,10.3699]
[1770548147832,4.40858451,86.92,86.865,10.3699]
[1770548148035,4.40858451,86.9,86.86,8.46026026]
[1770548149642,4.14434722,86.899,86.86,8.46026026]
[1770548152842,4.14434722,86.899,86.856,10.3709]
[1770548153835,4.14434722,86.899,86.856,18.83116026]
[1770548154246,4.14434722,86.899,86.858,10.3708]
[1770548155240,4.14434722,86.899,86.858,18.83106026]
[1770548156538,4.14434722,86.899,86.859,8.46026026]
[1770548157643,4.14434722,86.899,86.811,20.7527]
[1770548157644,3.77133943,86.879,86.835,8.46026026]
[1770548159437,3.67165973,86.891,86.841,8.46026026]
[1770548159747,3.67165973,86.901,86.851,8.46026026]
[1770548160846,3.67165973,86.901,86.854,8.46026026]
[1770548161749,3.67165973,86.901,86.856,8.46026026]
[1770548162046,4.40858451,86.9,86.856,8.46026026]
[1770548162251,3.39358121,86.899,86.856,8.46026026]
[1770548174863,3.39358121,86.899,86.807,20.7537]
[1770548174864,2.92765012,86.889,86.845,7.34217571]
[1770548186071,2.92765012,86.889,86.847,7.34217571]
[1770548188577,2.36495504,86.907,86.849,7.34217571]
[1770548189776,2.36495504,86.907,86.859,7.34217571]
[1770548190572,2.3329627,86.899,86.859,7.34217571]
[1770548193574,4.40955372,86.89,86.859,7.34217571]
[1770548193776,4.40955372,86.89,86.809,20.7532]
[1770548193777,2.23034709,86.879,86.834,7.34217571]
[1770548194972,4.40955372,86.87,86.834,7.34217571]
[1770548198577,6.17110259,86.87,86.834,7.34217571]
[1770548201483,1.34105563,86.869,86.834,7.34217571]
[1770548209092,5.34538514,86.86,86.811,6.59185888]
[1770548210598,5.34538514,86.86,86.814,6.59185888]
[1770548213098,0.69806865,86.859,86.814,6.59185888]
[1770548213901,4.40955372,86.85,86.814,6.59185888]
[1770548215793,4.91272064,86.85,86.814,6.59185888]
[1770548217202,0.50316692,86.85,86.814,6.59185888]
[1770548217406,10.50856208,86.899,86.814,6.59185888]
[1770548217407,9.30087096,86.93,86.814,6.59185888]
[1770548217709,26.4561823,86.928,86.87,4.40955372]
[1770548218500,26.4561823,86.928,86.876,10.3686]
[1770548218699,26.4561823,86.928,86.87,4.40955372]
[1770548219504,26.4561823,86.928,86.886,10.3674]
[1770548224411,26.48380186,86.909,86.84,4.40955372]
[1770548224807,26.48380186,86.899,86.84,4.40955372]
[1770548225407,440.78457399,86.989,86.81,4.40955372]
[1770548225408,26.4879435,86.879,86.81,4.40955372]
[1770548226714,26.4879435,86.879,86.827,10.3744]
[1770548228710,26.4879435,86.879,86.837,10.3733]
[1770548230913,26.43410953,86.869,86.837,10.3733]
[1770548242808,26.43410953,86.869,86.846,10.3722]
[1770548243013,26.43410953,86.869,86.846,8.31281635]
[1770548248029,26.43410953,86.869,86.854,10.3712]
[1770548249623,26.43410953,86.869,86.844,10.3724]
[1770548252423,26.43410953,86.869,86.834,10.3736]
[1770548253231,26.55204892,86.889,86.843,10.3726]
[1770548255339,26.48160578,86.879,86.843,10.3726]
[1770548257229,26.48160578,86.879,86.834,10.3736]
[1770548258538,34.57,86.912,86.776,11.51]
[1770548258539,4.41377134,86.86,86.776,11.51]
[1770548258730,26.53484516,86.859,86.8,4.41377134]
[1770548258930,26.53484516,86.859,86.81,4.41377134]
[1770548259235,26.53484516,86.859,86.724,28.62405028]
[1770548259236,26.53484516,86.883,86.83,4.41377134]
[1770548260026,26.53484516,86.883,86.85,4.41377134]
[1770548262036,26.53484516,86.883,86.842,10.3727]
[1770548263330,26.62625226,86.899,86.851,10.3716]
[1770548263537,26.62625226,86.899,86.86,4.41377134]
[1770548264037,26.62625226,86.919,86.86,4.41377134]
[1770548264939,26.62625226,86.919,86.871,10.3692]
[1770548268040,26.62625226,86.919,86.882,10.3679]
[1770548280548,26.62625226,86.919,86.872,10.3691]
[1770548287354,26.61029695,86.909,86.872,10.3691]
[1770548290747,26.61029695,86.909,86.88,10.3681]
[1770548292764,7.49739695,86.909,86.87,4.41377134]
[1770548293056,7.49739695,86.909,86.86,4.41377134]
[1770548293258,7.49739695,86.909,86.884,10.3676]
[1770548298260,7.49739695,86.909,86.85,4.4081055]
[1770548298762,7.49739695,86.909,86.833,161.3706]
[1770548298763,7.49739695,86.909,86.86,4.4081055]
[1770548299763,7.49739695,86.909,86.889,10.367]
[1770548300264,7.49739695,86.909,86.877,10.3685]
[1770548302964,7.49739695,86.909,86.868,10.3695]
[1770548307666,7.49739695,86.909,86.876,10.3686]
[1770548308758,7.49739695,86.909,86.833,28.62405028]
[1770548308759,7.49739695,86.909,86.86,4.4081055]
[1770548309361,7.49739695,86.909,86.873,10.369]
[1770548320382,4.4081055,86.88,86.82,4.4081055]
[1770548320576,12.04754406,86.879,86.82,4.4081055]
[1770548321378,12.04754406,86.879,86.835,10.3735]
[1770548324378,4.4081055,86.87,86.821,10.3752]
[1770548324573,11.83994461,86.869,86.821,10.3752]
[1770548328482,11.86041503,86.859,86.811,10.3764]
[1770548328792,11.86041503,86.859,86.79,4.4081055]
[1770548328991,4.4081055,86.85,86.79,4.4081055]
[1770548329193,11.86041503,86.849,86.79,4.4081055]
[1770548329391,11.86041503,86.849,86.8,10.3777]
[1770548329589,11.86373049,86.859,86.8,4.4081055]
[1770548329791,11.86373049,86.879,86.82,4.4081055]
[1770548330291,11.86373049,86.879,86.825,10.3747]
[1770548331689,11.86373049,86.879,86.814,21.886]
[1770548332592,11.79854519,86.869,86.814,21.886]
[1770548334293,11.8329185,86.859,86.803,21.8873]
[1770548334693,11.8329185,86.859,86.803,11.51]
[1770548335393,11.8329185,86.859,86.801,11.51]
[1770548335792,11.8329185,86.859,86.812,10.3763]
[1770548336183,11.8329185,86.859,86.801,11.51]
[1770548336795,11.83878654,86.872,86.82,4.4081055]
[1770548338193,11.84165502,86.869,86.812,10.3763]
[1770548339795,11.83414394,86.866,86.812,10.3763]
[1770548341592,11.82502735,86.859,86.812,10.3763]
[1770548341794,11.82502735,86.859,86.804,11.51]
[1770548341992,11.82502735,86.849,86.79,15.9181055]
[1770548342195,11.84793926,86.839,86.784,10.3796]
[1770548342699,11.84793926,86.809,86.75,4.4081055]
[1770548343088,11.84793926,86.809,86.751,11.51]
[1770548343691,11.84793926,86.809,86.76,10.3824]
[1770548343887,11.84793926,86.809,86.74,4.4081055]
[1770548344094,11.84793926,86.809,86.75,4.4081055]
[1770548344798,11.84793926,86.809,86.75,14.7918055]
[1770548345200,11.84793926,86.809,86.75,4.4081055]
[1770548346701,11.84793926,86.809,86.759,10.3826]
[1770548347395,11.84793926,86.809,86.769,10.3814]
[1770548349295,11.84639906,86.833,86.787,10.3793]
[1770548349495,11.84639906,86.833,86.736,20.7707]
[1770548349695,11.84639906,86.833,86.78,4.4081055]
[1770548350695,11.84639906,86.833,86.797,10.3781]
[1770548352702,11.84639906,86.833,86.806,10.377]
[1770548354214,11.84639906,86.833,86.796,10.3781]
[1770548358618,11.84639906,86.833,86.782,10.3799]
[1770548359311,11.89224092,86.829,86.773,10.3809]
[1770548360112,11.89224092,86.829,86.774,11.51]
[1770548363425,11.89224092,86.829,86.78,4.41622896]
[1770548365116,11.89224092,86.829,86.774,11.51]
[1770548366019,11.89224092,86.829,86.713,28.62405028]
[1770548366317,11.9033322,86.816,86.712,20.7765]
[1770548366521,11.9033322,86.816,86.752,10.3834]
[1770548367115,11.9033322,86.816,86.756,10.3829]
[1770548367422,11.9033322,86.816,86.712,20.7765]
[1770548367622,11.9033322,86.816,86.713,28.62405028]
[1770548367824,11.9033322,86.816,86.714,11.51]
[1770548368026,11.9033322,86.816,86.764,10.3819]
[1770548372728,11.9033322,86.816,86.773,10.3809]
[1770548376530,11.80871349,86.831,86.745,11.51]
[1770548377121,11.80871349,86.831,86.771,11.51]
[1770548377534,11.80871349,86.831,86.75,20.7674]
[1770548377735,11.80871349,86.831,86.793,10.3785]
[1770548378135,11.80871349,86.831,86.753,11.51]
[1770548378636,11.80871349,86.831,86.777,11.51]
[1770548379635,11.80871349,86.831,86.795,10.3783]
[1770548380937,11.80871349,86.831,86.753,11.51]
[1770548381342,11.80871349,86.831,86.795,10.3783]
[1770548385949,11.80871349,86.831,86.805,10.3771]
[1770548386149,44.9382,86.881,86.805,10.3771]
[1770548386150,11.93898606,86.878,86.805,10.3771]
[1770548386345,11.9193856,86.876,86.805,10.3771]
[1770548386547,11.9193856,86.874,86.805,10.3771]
[1770548387951,9.2164917,86.873,86.805,10.3771]
[1770548388146,11.92089115,86.871,86.763,11.51]
[1770548388955,11.92089115,86.871,86.795,10.3783]
[1770548392855,12.04864867,86.868,86.795,10.3783]
[1770548393051,12.04864867,86.868,86.759,11.51]
[1770548393256,12.04864867,86.868,86.761,11.51]
[1770548394151,12.04864867,86.868,86.793,10.3786]
[1770548394750,12.04864867,86.868,86.784,10.3796]
[1770548394947,12.02197868,86.866,86.784,10.3796]
[1770548395146,12.02346488,86.864,86.784,10.3796]
[1770548395348,12.02346488,86.864,86.793,10.3786]
[1770548396253,12.02346488,86.864,86.785,11.51]
[1770548397259,12.02346488,86.864,86.766,11.51]
[1770548397857,12.02346488,86.864,86.803,10.3774]
[1770548401559,10.3703,86.863,86.803,10.3774]
[1770548401751,12.12262742,86.862,86.754,28.62405028]
[1770548401953,12.12262742,86.858,86.741,28.62405028]
[1770548402363,12.07184987,86.854,86.741,28.62405028]
[1770548402563,12.07184987,86.853,86.741,28.62405028]
[1770548402759,12.07184987,86.834,86.773,10.3809]
[1770548403759,12.07324439,86.83,86.742,11.51]
[1770548404359,12.02048993,86.82,86.756,11.51]
[1770548404561,12.02048993,86.82,86.755,10.3831]
[1770548404761,12.02048993,86.808,86.744,10.3843]
[1770548406263,12.02048993,86.808,86.752,10.3834]
[1770548409456,12.02048993,86.808,86.723,11.51]
[1770548410864,12.02048993,86.808,86.761,10.3823]
[1770548412469,12.02048993,86.808,86.751,10.3836]
[1770548414571,12.02048993,86.808,86.709,2.00538804]
[1770548414572,11.97563264,86.804,86.741,10.3847]
[1770548417667,11.97563264,86.804,86.709,2.00538804]
[1770548418377,11.97563264,86.804,86.752,10.3834]
[1770548419571,11.97563264,86.804,86.761,10.3824]
[1770548425578,11.97563264,86.804,86.747,10.384]
[1770548428079,11.97563264,86.804,86.736,10.3853]
[1770548428778,11.97563264,86.804,86.699,2.00564231]
[1770548429083,11.92072626,86.798,86.679,2.00593711]
[1770548429869,11.92072626,86.798,86.68,28.62405028]
[1770548430075,11.92072626,86.798,86.679,30.62998739]
[1770548430778,11.92072626,86.798,86.679,2.00593711]
[1770548432279,11.99749499,86.793,86.679,2.00593711]
[1770548433070,11.99749499,86.787,86.658,28.62405028]
[1770548433269,11.99749499,86.783,86.652,63.19405028]
[1770548433474,11.99749499,86.783,86.669,2.00654433]
[1770548434280,11.91893818,86.775,86.641,34.57]
[1770548434478,11.91893818,86.773,86.641,34.57]
[1770548434681,11.91893818,86.773,86.659,2.00677575]
[1770548436885,11.89271311,86.763,86.627,63.19405028]
[1770548437182,11.89271311,86.763,86.649,2.00701301]
[1770548441477,11.93391636,86.755,86.624,34.57]
[1770548441683,177.0,86.812,86.624,34.57]
[1770548441684,11.93391636,86.753,86.624,34.57]
[1770548442484,11.93391636,86.753,86.606,34.57]
[1770548442680,11.93391636,86.753,86.623,34.57]
[1770548442886,11.93391636,86.753,86.595,47.21825809]
[1770548442887,11.93391636,86.753,86.649,2.00713456]
[1770548444489,11.93391636,86.753,86.652,34.57]
[1770548445389,11.93391636,86.753,86.652,63.19405028]
[1770548446280,11.93391636,86.753,86.655,34.57]
[1770548447378,11.96276443,86.838,86.655,63.19405028]
[1770548447587,11.96276443,86.824,86.669,34.57]
[1770548447785,11.96276443,86.813,86.669,34.57]
[1770548447993,11.96276443,86.813,86.673,63.19405028]
[1770548448194,11.96276443,86.813,86.675,34.57]
[1770548448387,11.96276443,86.813,86.675,63.19405028]
[1770548449095,11.96276443,86.813,86.675,74.70405028]
[1770548449393,11.96276443,86.813,86.677,34.57]
[1770548450295,11.96276443,86.813,86.677,63.19405028]
[1770548451093,11.96276443,86.813,86.681,34.57]
[1770548451293,11.96276443,86.813,86.691,28.62405028]
[1770548451492,11.96276443,86.813,86.692,34.57]
[1770548453289,11.96276443,86.813,86.692,63.19405028]
[1770548453797,11.96276443,86.813,86.7,28.62405028]
[1770548453984,11.96276443,86.813,86.698,28.62405028]
[1770548455186,11.96276443,86.813,86.696,28.62405028]
[1770548455401,11.96276443,86.813,86.698,28.62405028]
[1770548455697,11.96276443,86.813,86.697,28.62405028]
[1770548456293,11.96276443,86.813,86.699,28.62405028]
[1770548458201,11.96276443,86.813,86.702,28.62405028]
[1770548459404,11.96276443,86.813,86.703,28.62405028]
[1770548461804,11.96276443,86.813,86.685,28.62405028]
[1770548462008,11.96276443,86.813,86.687,28.62405028]
[1770548462307,11.96276443,86.813,86.699,28.62405028]
[1770548462499,11.96276443,86.813,86.708,28.62405028]
[1770548462899,11.96276443,86.813,86.704,28.62405028]
[1770548463900,11.96276443,86.813,86.703,28.62405028]
[1770548465103,11.96276443,86.813,86.704,28.62405028]
[1770548465497,11.96276443,86.813,86.703,28.62405028]
[1770548465698,11.96276443,86.813,86.699,28.62405028]
[1770548466901,11.96276443,86.813,86.694,28.62405028]
[1770548467205,11.96276443,86.813,86.695,28.62405028]
[1770548467408,11.96276443,86.813,86.694,28.62405028]
[1770548468106,11.96276443,86.813,86.704,28.62405028]
[1770548469406,11.96276443,86.813,86.705,28.62405028]
[1770548469907,11.96276443,86.813,86.71,28.62405028]
[1770548470098,11.96276443,86.813,86.714,28.62405028]
[1770548470296,11.96276443,86.813,86.713,28.62405028]
[1770548470703,11.96276443,86.813,86.714,28.62405028]
[1770548471207,11.96276443,86.813,86.713,28.62405028]
[1770548472205,11.96276443,86.813,86.714,28.62405028]
[1770548472509,11.96276443,86.813,86.713,28.62405028]
[1770548472900,11.96276443,86.813,86.713,63.26405028]
[1770548473109,11.96276443,86.813,86.729,28.62405028]
[1770548473311,11.96276443,86.813,86.736,28.62405028]
[1770548474306,11.96276443,86.813,86.735,28.62405028]
[1770548475412,11.96276443,86.813,86.733,28.62405028]
[1770548476313,11.96276443,86.813,86.732,28.62405028]
[1770548476713,11.96276443,86.813,86.738,28.62405028]
[1770548477314,11.96276443,86.813,86.736,28.62405028]
[1770548477813,11.96276443,86.813,86.732,28.62405028]
[1770548478011,11.96276443,86.813,86.724,34.64]
[1770548479114,11.96276443,86.813,86.725,34.64]
[1770548480207,11.96276443,86.813,86.727,34.64]
[1770548481411,11.87545261,86.876,86.73,28.62405028]
[1770548481613,11.87545261,86.876,86.742,34.64]
[1770548481815,11.87545261,86.876,86.742,63.26405028]
[1770548482210,11.87545261,86.876,86.748,63.26405028]
[1770548482412,11.87545261,86.876,86.758,28.62405028]
[1770548482717,11.87545261,86.876,86.766,28.62405028]
[1770548483218,11.87545261,86.876,86.764,34.64]
[1770548483518,11.87545261,86.876,86.764,63.26405028]
[1770548484319,11.87545261,86.876,86.763,34.64]
[1770548484519,11.87545261,86.876,86.773,34.64]
[1770548484816,11.87545261,86.876,86.773,63.26405028]
[1770548485315,11.87545261,86.876,86.773,34.64]
[1770548485619,11.87545261,86.876,86.771,28.62405028]
[1770548485620,11.87545261,86.876,86.772,34.64]
[1770548486618,11.87545261,86.876,86.77,34.64]
[1770548487819,11.87545261,86.876,86.767,28.62405028]
[1770548487820,11.87545261,86.876,86.768,34.64]
[1770548488717,11.87545261,86.876,86.768,63.26405028]
[1770548489320,11.87545261,86.876,86.769,34.64]
[1770548489820,11.87545261,86.876,86.778,34.64]
[1770548490820,11.87545261,86.876,86.776,34.64]
[1770548491913,11.87545261,86.876,86.777,34.64]
[1770548493118,11.87545261,86.876,86.772,28.62405028]
[1770548493119,11.87545261,86.876,86.773,34.64]
[1770548494121,11.87545261,86.876,86.773,46.17]
[1770548494609,11.87545261,86.876,86.771,34.64]
[1770548494810,11.87545261,86.876,86.773,34.64]
[1770548495216,11.87545261,86.876,86.748,28.62405028]
[1770548495417,11.87545261,86.876,86.739,28.62405028]
[1770548495816,11.87545261,86.876,86.725,28.62405028]
[1770548496218,11.87545261,86.876,86.726,34.64]
[1770548496418,11.87545261,86.876,86.724,34.64]
[1770548497424,11.87545261,86.876,86.717,34.64]
[1770548498123,11.87545261,86.876,86.719,34.64]
[1770548499225,11.87545261,86.876,86.719,63.26405028]
[1770548500213,11.87545261,86.876,86.682,230.26]
[1770548500214,11.87545261,86.876,86.72,28.62405028]
[1770548501316,11.87545261,86.876,86.721,28.62405028]
[1770548502321,11.87545261,86.876,86.696,70.34825809]
[1770548502322,11.87545261,86.876,86.706,28.62405028]
[1770548502519,11.87545261,86.876,86.712,28.62405028]
[1770548502723,11.87545261,86.876,86.718,28.62405028]
[1770548502914,11.87545261,86.876,86.722,28.62405028]
[1770548503117,11.87545261,86.876,86.723,34.64]
[1770548503319,11.87545261,86.876,86.736,28.62405028]
[1770548503824,11.87545261,86.876,86.74,28.62405028]
[1770548504222,11.87545261,86.876,86.745,28.62405028]
[1770548504528,11.87545261,86.876,86.768,28.62405028]
[1770548504728,11.87545261,86.876,86.769,28.62405028]
[1770548505827,11.87545261,86.876,86.778,28.62405028]
[1770548506328,11.87545261,86.876,86.773,34.64]
[1770548506329,11.87545261,86.876,86.782,28.62405028]
[1770548506717,11.87545261,86.876,86.783,11.53]
[1770548506923,11.87545261,86.876,86.779,11.53]
[1770548508125,11.87545261,86.876,86.767,28.62405028]
[1770548508328,11.87545261,86.876,86.745,28.62405028]
[1770548508830,11.87545261,86.876,86.749,28.62405028]
[1770548509126,11.87545261,86.876,86.745,28.62405028]
[1770548509330,11.87545261,86.876,86.756,28.62405028]
[1770548510026,11.87545261,86.876,86.745,28.62405028]
[1770548510232,11.87545261,86.876,86.749,0.07094189]
[1770548510428,11.87545261,86.876,86.751,0.07094189]
[1770548511732,11.87545261,86.876,86.753,0.08418949]
[1770548513531,11.87545261,86.876,86.755,28.62405028]
[1770548513731,11.87545261,86.876,86.766,28.62405028]
[1770548514026,11.87545261,86.876,86.762,28.62405028]
[1770548514232,11.87545261,86.876,86.766,28.62405028]
[1770548514631,11.87545261,86.876,86.774,28.62405028]
[1770548514834,11.87545261,86.876,86.775,28.62405028]
[1770548515234,11.87545261,86.876,86.776,28.62405028]
[1770548515731,11.87545261,86.876,86.777,28.62405028]
[1770548516231,11.87545261,86.876,86.755,70.34825809]
[1770548516232,11.87545261,86.876,86.779,28.62405028]
[1770548517235,11.87545261,86.876,86.781,28.62405028]
[1770548517930,11.87545261,86.876,86.76,34.64]
[1770548517931,11.87545261,86.876,86.772,28.62405028]
[1770548518434,11.87545261,86.876,86.768,28.62405028]
[1770548518634,11.87545261,86.876,86.783,28.62405028]
[1770548518934,11.87545261,86.876,86.755,11.53]
[1770548518935,11.87545261,86.876,86.792,63.26405028]
[1770548519334,11.87545261,86.876,86.793,28.62405028]
[1770548519932,11.87545261,86.876,86.797,28.62405028]
[1770548520133,11.87545261,86.876,86.798,34.64]
[1770548520332,11.87545261,86.876,86.802,63.26405028]
[1770548521137,11.87545261,86.876,86.802,34.64]
[1770548521337,12.05002208,86.946,86.811,28.62405028]
[1770548521536,12.05002208,86.946,86.812,34.64]
[1770548521831,12.05002208,86.946,86.825,28.62405028]
[1770548522035,12.05002208,86.946,86.824,28.62405028]
[1770548522243,12.05002208,86.946,86.825,0.04608659]
[1770548523339,12.05002208,86.946,86.826,0.05156514]
[1770548524543,12.05002208,86.946,86.829,0.02731928]
[1770548524736,12.05002208,86.946,86.831,0.02731928]
[1770548527540,12.05002208,86.946,86.836,28.62405028]
[1770548527741,12.05002208,86.946,86.84,28.62405028]
[1770548527937,12.05002208,86.946,86.836,28.62405028]
[1770548528138,12.05002208,86.946,86.833,28.62405028]
[1770548529041,12.05002208,86.946,86.834,28.62405028]
[1770548529238,12.05002208,86.946,86.832,28.62405028]
[1770548529640,12.05002208,86.946,86.837,34.64]
[1770548530140,12.05002208,86.946,86.839,34.64]
[1770548530851,12.05002208,86.946,86.83,28.62405028]
[1770548531151,12.05002208,86.946,86.827,34.64]
[1770548531649,12.05002208,86.946,86.829,34.64]
[1770548532544,12.05002208,86.946,86.827,28.62405028]
[1770548532545,12.05002208,86.946,86.828,34.64]
[1770548532748,12.05002208,86.946,86.83,34.64]
[1770548533845,12.05002208,86.946,86.828,34.64]
[1770548534946,12.05002208,86.946,86.826,34.64]
[1770548535152,12.05002208,86.946,86.811,28.62405028]
[1770548535454,12.05002208,86.946,86.809,28.62405028]
[1770548535647,12.05002208,86.946,86.808,28.62405028]
[1770548535854,12.05002208,86.946,86.804,28.62405028]
[1770548536155,12.05002208,86.946,86.805,34.64]
[1770548536350,12.05002208,86.946,86.804,34.64]
[1770548536653,12.05002208,86.946,86.803,28.62405028]
[1770548536852,12.05002208,86.946,86.798,28.62405028]
[1770548537047,12.05002208,86.946,86.796,28.62405028]
[1770548537248,12.05002208,86.946,86.797,34.64]
[1770548537657,12.05002208,86.946,86.801,34.64]
[1770548538153,12.05002208,86.946,86.809,34.64]
[1770548538355,12.05002208,86.946,86.812,63.26405028]
[1770548538656,12.05002208,86.946,86.818,34.64]
[1770548539455,12.05002208,86.946,86.813,34.64]
[1770548541553,12.05002208,86.946,86.818,46.17]
[1770548541752,12.05002208,86.946,86.822,34.64]
[1770548542556,12.05002208,86.946,86.824,34.64]
[1770548542749,12.05002208,86.946,86.834,34.64]
[1770548542952,12.05002208,86.946,86.841,11.53]
[1770548543146,12.05002208,86.946,86.844,34.64]
[1770548544054,12.05002208,86.946,86.838,34.64]
[1770548545158,12.05002208,86.946,86.836,63.26405028]
[1770548545454,12.05002208,86.946,86.786,230.14]
[1770548545455,12.05002208,86.946,86.838,34.64]
[1770548545653,12.17033618,86.976,86.838,34.64]
[1770548545847,12.17033618,86.976,86.862,34.64]
[1770548546854,12.17033618,86.976,86.843,34.64]
[1770548547947,12.17033618,86.976,86.839,34.64]
[1770548549157,12.17033618,86.976,86.836,34.64]
[1770548550148,12.17033618,86.976,86.835,34.64]
[1770548551264,12.17033618,86.976,86.834,34.64]
[1770548551462,12.17033618,86.976,86.819,62.99206914]
[1770548551758,12.14122621,86.975,86.809,28.35206914]
[1770548552054,34.64,86.962,86.796,28.35206914]
[1770548552259,12.14122621,86.955,86.795,28.35206914]
[1770548552657,12.14122621,86.955,86.794,28.35206914]
[1770548553151,12.14122621,86.955,86.795,28.35206914]
[1770548553353,12.14122621,86.955,86.786,230.14]
[1770548553354,12.14122621,86.955,86.796,62.99206914]
[1770548554358,12.14122621,86.955,86.826,28.35206914]
[1770548554664,12.14122621,86.955,86.829,34.64]
[1770548555362,12.14122621,86.955,86.831,62.99206914]
[1770548555863,12.14122621,86.955,86.831,34.64]
[1770548556362,12.14122621,86.955,86.832,34.64]
[1770548556963,12.14122621,86.955,86.834,34.64]
[1770548557163,12.14122621,86.955,86.834,62.99206914]
[1770548557363,12.14122621,86.955,86.841,62.99206914]
[1770548557666,12.14122621,86.955,86.847,28.35206914]
[1770548557959,12.14122621,86.955,86.856,34.64]
[1770548558165,12.14122621,86.955,86.867,34.64]
[1770548558368,12.14122621,86.955,86.878,28.35206914]
[1770548558658,12.20929543,86.969,86.882,28.35206914]
[1770548559168,12.20929543,86.969,86.881,28.35206914]
[1770548559356,12.20929543,86.969,86.883,28.35206914]
[1770548560055,12.20929543,86.969,86.882,28.35206914]
[1770548560355,12.20929543,86.969,86.884,28.35206914]
[1770548560861,12.20929543,86.969,86.88,28.35206914]
[1770548561052,12.20929543,86.969,86.877,62.99206914]
[1770548561255,12.20929543,86.969,86.886,28.35206914]
[1770548561451,12.20929543,86.969,86.891,28.35206914]
[1770548561660,12.20929543,86.969,86.895,28.35206914]
[1770548561857,12.1637043,87.051,86.895,28.35206914]
[1770548562058,12.1637043,87.036,86.9,28.35206914]
[1770548562253,12.1637043,87.036,86.909,28.35206914]
[1770548562451,12.1637043,87.036,86.905,28.35206914]
[1770548562652,12.1637043,87.036,86.909,28.35206914]
[1770548563164,12.1637043,87.036,86.907,28.35206914]
[1770548563365,12.1637043,87.036,86.917,28.35206914]
[1770548563562,12.1637043,87.036,86.895,28.35206914]
[1770548564253,12.1637043,87.036,86.896,28.35206914]
[1770548564457,12.1637043,87.036,86.895,28.35206914]
[1770548564864,12.1637043,87.036,86.882,28.35206914]